[Event "Titled Tuesday Blitz August 09 Early 2022"]
[White "Carlsson, Ludvig"]
[Black "Szpar, Milosz"]
[WhiteFideId "1727010"]
[BlackFideId "1184989"]
[WhiteElo "2195"]
[BlackElo "2422"]
[Result "1-0"]
[Round "03"]
[TimeControl "180+1"]
[Date "2022.08.09"]
[WhiteClock "0:00:32"]
[BlackClock "0:00:03"]

1. Nf3 {[%clk 0:03:00]}  c5 {[%clk 0:02:59]} 2. g3 {[%clk 0:02:59]}  Nc6 {[%clk 0:02:57]} 3. c4 {[%clk 0:02:59]}  e5 {[%clk 0:02:54]} 4. Nc3 {[%clk 0:02:59]}  g6 {[%clk 0:02:54]} 5. Bg2 {[%clk 0:02:59]}  Bg7 {[%clk 0:02:55]} 6. O-O {[%clk 0:03:00]}  Nge7 {[%clk 0:02:55]} 7. d3 {[%clk 0:02:58]}  O-O {[%clk 0:02:55]} 8. Bg5 {[%clk 0:02:56]}  h6 {[%clk 0:02:54]} 9. Bxe7 {[%clk 0:02:56]}  Qxe7 {[%clk 0:02:53]} 10. Ne1 {[%clk 0:02:50]}  d6 {[%clk 0:02:50]} 11. Nc2 {[%clk 0:02:49]}  f5 {[%clk 0:02:46]} 12. Rb1 {[%clk 0:02:48]}  a5 {[%clk 0:02:43]} 13. Nd5 {[%clk 0:02:47]}  Qd8 {[%clk 0:02:42]} 14. a3 {[%clk 0:02:47]}  a4 {[%clk 0:02:36]} 15. e3 {[%clk 0:02:43]}  g5 {[%clk 0:02:35]} 16. f4 {[%clk 0:02:42]}  Be6 {[%clk 0:02:29]} 17. b4 {[%clk 0:02:36]}  axb3 {[%clk 0:02:29]} 18. Rxb3 {[%clk 0:02:35]}  Rf7 {[%clk 0:02:29]} 19. Qb1 {[%clk 0:02:34]}  Ra7 {[%clk 0:02:16]} 20. Rb6 {[%clk 0:02:16]}  h5 {[%clk 0:02:12]} 21. Rb5 {[%clk 0:01:54]}  h4 {[%clk 0:02:09]} 22. gxh4 {[%clk 0:01:42]}  gxf4 {[%clk 0:01:50]} 23. exf4 {[%clk 0:01:42]}  Qxh4 {[%clk 0:01:50]} 24. Qe1 {[%clk 0:01:38]}  Qxe1 {[%clk 0:01:31]} 25. Rxe1 {[%clk 0:01:39]}  Bh6 {[%clk 0:01:30]} 26. Rb6 {[%clk 0:01:33]}  Rg7 {[%clk 0:01:22]} 27. Kf2 {[%clk 0:01:32]}  Bf7 {[%clk 0:01:16]} 28. Reb1 {[%clk 0:01:16]}  exf4 {[%clk 0:00:49]} 29. Rxb7 {[%clk 0:01:12]}  Rxb7 {[%clk 0:00:48]} 30. Rxb7 {[%clk 0:01:13]}  Ne5 {[%clk 0:00:36]} 31. Ne1 {[%clk 0:01:00]}  f3 {[%clk 0:00:26]} 32. Bxf3 {[%clk 0:00:58]}  Nxf3 {[%clk 0:00:25]} 33. Nxf3 {[%clk 0:00:57]}  Kh7 {[%clk 0:00:06]} 34. a4 {[%clk 0:00:50]}  Bxd5 {[%clk 0:00:02]} 35. Rxg7+ {[%clk 0:00:49]}  Bxg7 {[%clk 0:00:02]} 36. cxd5 {[%clk 0:00:50]}  Bc3 {[%clk 0:00:02]} 37. Ke2 {[%clk 0:00:36]}  Kg6 {[%clk 0:00:02]} 38. Kd1 {[%clk 0:00:37]}  Kh5 {[%clk 0:00:03]} 39. h3 {[%clk 0:00:37]}  Kg6 {[%clk 0:00:02]} 40. Kc2 {[%clk 0:00:37]}  Ba5 {[%clk 0:00:03]} 41. Kb3 {[%clk 0:00:38]}  f4 {[%clk 0:00:03]} 42. Kc4 {[%clk 0:00:38]}  Kf5 {[%clk 0:00:03]} 43. Kb5 {[%clk 0:00:39]}  Bd8 {[%clk 0:00:02]} 44. a5 {[%clk 0:00:39]}  Bxa5 {[%clk 0:00:02]} 45. Kxa5 {[%clk 0:00:40]}  c4 {[%clk 0:00:02]} 46. dxc4 {[%clk 0:00:37]}  Ke4 {[%clk 0:00:03]} 47. Ng5+ {[%clk 0:00:37]}  Kf5 {[%clk 0:00:03]} 48. Nf3 {[%clk 0:00:36]}  Ke4 {[%clk 0:00:03]} 49. Nh2 {[%clk 0:00:37]}  Ke3 {[%clk 0:00:03]} 50. Kb5 {[%clk 0:00:36]}  Kf2 {[%clk 0:00:03]} 51. c5 {[%clk 0:00:36]}  Kg3 {[%clk 0:00:03]} 52. cxd6 {[%clk 0:00:30]}  Kxh3 {[%clk 0:00:04]} 53. d7 {[%clk 0:00:30]}  Kxh2 {[%clk 0:00:03]} 54. d8=Q {[%clk 0:00:30]}  f3 {[%clk 0:00:03]} 55. Qf6 {[%clk 0:00:31]}  f2 {[%clk 0:00:03]} 56. Qxf2+ {[%clk 0:00:31]}  Kh1 {[%clk 0:00:03]} 57. Qe2 {[%clk 0:00:31]}  Kg1 {[%clk 0:00:03]} 58. d6 {[%clk 0:00:32]} 1-0


[Site "https://www.chess.com"]

[Event "Titled Tuesday Blitz August 09 Early 2022"]
[White "Chernikov, Vladimir"]
[Black "Zamorano, Jorge"]
[WhiteFideId "14112914"]
[BlackFideId "173770"]
[WhiteElo "2095"]
[BlackElo "2331"]
[Result "1/2-1/2"]
[Round "03"]
[TimeControl "180+1"]
[Date "2022.08.09"]
[WhiteClock "0:00:56"]
[BlackClock "0:00:58"]

1. b3 {[%clk 0:03:00]}  Nf6 {[%clk 0:02:59]} 2. Bb2 {[%clk 0:03:01]}  d5 {[%clk 0:02:58]} 3. e3 {[%clk 0:03:00]}  Bf5 {[%clk 0:02:57]} 4. Nf3 {[%clk 0:02:59]}  e6 {[%clk 0:02:57]} 5. d4 {[%clk 0:02:58]}  c5 {[%clk 0:02:55]} 6. Bd3 {[%clk 0:02:57]}  Bg6 {[%clk 0:02:53]} 7. Ne5 {[%clk 0:02:56]}  Nc6 {[%clk 0:02:53]} 8. f4 {[%clk 0:02:55]}  Bxd3 {[%clk 0:02:44]} 9. Qxd3 {[%clk 0:02:40]}  cxd4 {[%clk 0:02:44]} 10. exd4 {[%clk 0:02:34]}  Ne4 {[%clk 0:02:41]} 11. O-O {[%clk 0:02:31]}  f5 {[%clk 0:02:37]} 12. c4 {[%clk 0:02:28]}  Bd6 {[%clk 0:02:36]} 13. Nxc6 {[%clk 0:02:22]}  bxc6 {[%clk 0:02:36]} 14. Ba3 {[%clk 0:02:21]}  O-O {[%clk 0:02:32]} 15. Bxd6 {[%clk 0:02:19]}  Qxd6 {[%clk 0:02:32]} 16. c5 {[%clk 0:02:19]}  Qc7 {[%clk 0:02:30]} 17. Nd2 {[%clk 0:02:18]}  a5 {[%clk 0:02:27]} 18. g3 {[%clk 0:02:13]}  Rfb8 {[%clk 0:02:24]} 19. Nf3 {[%clk 0:02:12]}  Rb4 {[%clk 0:02:22]} 20. Ne5 {[%clk 0:02:10]}  Rab8 {[%clk 0:02:22]} 21. Rfb1 {[%clk 0:02:08]}  Qb7 {[%clk 0:02:15]} 22. a3 {[%clk 0:01:53]}  Rxb3 {[%clk 0:02:12]} 23. Rxb3 {[%clk 0:01:51]}  Qxb3 {[%clk 0:02:13]} 24. Qxb3 {[%clk 0:01:49]}  Rxb3 {[%clk 0:02:14]} 25. Nxc6 {[%clk 0:01:49]}  a4 {[%clk 0:02:12]} 26. Nd8 {[%clk 0:01:47]}  Rb2 {[%clk 0:02:01]} 27. Nxe6 {[%clk 0:01:44]}  Nd2 {[%clk 0:02:02]} 28. c6 {[%clk 0:01:30]}  Rc2 {[%clk 0:01:55]} 29. Nc5 {[%clk 0:01:29]}  Nf3+ {[%clk 0:01:55]} 30. Kf1 {[%clk 0:01:28]}  Nxd4 {[%clk 0:01:52]} 31. Nxa4 {[%clk 0:01:23]}  Nxc6 {[%clk 0:01:49]} 32. h3 {[%clk 0:01:19]}  h5 {[%clk 0:01:40]} 33. Nb6 {[%clk 0:01:18]}  d4 {[%clk 0:01:35]} 34. a4 {[%clk 0:01:18]}  Rh2 {[%clk 0:01:32]} 35. Kg1 {[%clk 0:01:15]}  Rb2 {[%clk 0:01:31]} 36. Nc4 {[%clk 0:01:14]}  Rc2 {[%clk 0:01:29]} 37. Ne5 {[%clk 0:01:11]}  Nxe5 {[%clk 0:01:14]} 38. fxe5 {[%clk 0:01:12]}  d3 {[%clk 0:01:15]} 39. Rd1 {[%clk 0:01:07]}  d2 {[%clk 0:01:02]} 40. Kf2 {[%clk 0:01:07]}  Kf7 {[%clk 0:01:00]} 41. Ke2 {[%clk 0:01:06]}  Ra2 {[%clk 0:00:59]} 42. Rxd2 {[%clk 0:01:05]}  Rxa4 {[%clk 0:01:00]} 43. Rd7+ {[%clk 0:00:59]}  Ke6 {[%clk 0:00:58]} 44. Rxg7 {[%clk 0:00:59]}  Kxe5 {[%clk 0:00:58]} 45. Re7+ {[%clk 0:00:56]} 1/2-1/2


[Site "https://www.chess.com"]

[Event "Titled Tuesday Blitz August 09 Early 2022"]
[White "Chernomordik, Pavel"]
[Black "Rendle, Thomas E"]
[WhiteFideId "2804530"]
[BlackFideId "408760"]
[WhiteElo "2217"]
[BlackElo "2428"]
[Result "1-0"]
[Round "03"]
[TimeControl "180+1"]
[Date "2022.08.09"]
[WhiteClock "0:00:09"]
[BlackClock "0:00:07"]

1. e4 {[%clk 0:03:00]}  e6 {[%clk 0:02:57]} 2. Nc3 {[%clk 0:03:00]}  d5 {[%clk 0:02:54]} 3. d4 {[%clk 0:02:59]}  Nc6 {[%clk 0:02:54]} 4. e5 {[%clk 0:02:49]}  f6 {[%clk 0:02:51]} 5. f4 {[%clk 0:02:43]}  fxe5 {[%clk 0:02:50]} 6. fxe5 {[%clk 0:02:42]}  Qh4+ {[%clk 0:02:50]} 7. g3 {[%clk 0:02:41]}  Qxd4 {[%clk 0:02:49]} 8. Bd3 {[%clk 0:02:21]}  Qxe5+ {[%clk 0:02:39]} 9. Nge2 {[%clk 0:02:20]}  Bd6 {[%clk 0:02:07]} 10. Bf4 {[%clk 0:02:15]}  Qh5 {[%clk 0:02:06]} 11. Bxd6 {[%clk 0:02:07]}  cxd6 {[%clk 0:02:07]} 12. Nb5 {[%clk 0:02:07]}  Kd7 {[%clk 0:02:05]} 13. O-O {[%clk 0:02:05]}  Nf6 {[%clk 0:02:04]} 14. Qd2 {[%clk 0:01:54]}  a6 {[%clk 0:01:55]} 15. Nbd4 {[%clk 0:01:46]}  Nxd4 {[%clk 0:01:55]} 16. Nxd4 {[%clk 0:01:45]}  e5 {[%clk 0:01:42]} 17. Bf5+ {[%clk 0:01:36]}  Ke7 {[%clk 0:01:26]} 18. Bxc8 {[%clk 0:01:33]}  Rhxc8 {[%clk 0:01:27]} 19. Nf5+ {[%clk 0:01:28]}  Kf8 {[%clk 0:01:21]} 20. Nxd6 {[%clk 0:01:22]}  Rc7 {[%clk 0:01:09]} 21. Rae1 {[%clk 0:01:13]}  Kg8 {[%clk 0:00:59]} 22. Rf5 {[%clk 0:01:09]}  Qg6 {[%clk 0:00:50]} 23. Rexe5 {[%clk 0:00:41]}  Rd8 {[%clk 0:00:50]} 24. Rg5 {[%clk 0:00:29]}  Qxc2 {[%clk 0:00:38]} 25. Qxc2 {[%clk 0:00:16]}  Rxc2 {[%clk 0:00:39]} 26. Nf5 {[%clk 0:00:15]}  g6 {[%clk 0:00:39]} 27. Re7 {[%clk 0:00:11]}  Ne4 {[%clk 0:00:10]} 28. Nh6+ {[%clk 0:00:10]}  Kf8 {[%clk 0:00:07]} 29. Rf7+ {[%clk 0:00:09]}  Ke8 {[%clk 0:00:07]} 30. Re5# {[%clk 0:00:09]} 1-0


[Site "https://www.chess.com"]

[Event "Titled Tuesday Blitz August 09 Early 2022"]
[White "Chigaev, Maksim"]
[Black "Papasimakopoulos, Alexandros"]
[WhiteFideId "4108116"]
[BlackFideId "4244125"]
[WhiteElo "2895"]
[BlackElo "2688"]
[Result "1-0"]
[Round "03"]
[TimeControl "180+1"]
[Date "2022.08.09"]
[WhiteClock "0:00:55"]
[BlackClock "0:01:01"]

1. e4 {[%clk 0:03:00]}  e6 {[%clk 0:03:00]} 2. d3 {[%clk 0:02:56]}  d5 {[%clk 0:03:00]} 3. Nd2 {[%clk 0:02:57]}  c5 {[%clk 0:03:00]} 4. Ngf3 {[%clk 0:02:58]}  Nc6 {[%clk 0:03:01]} 5. g3 {[%clk 0:02:59]}  Nge7 {[%clk 0:03:01]} 6. Bg2 {[%clk 0:02:59]}  g6 {[%clk 0:03:02]} 7. O-O {[%clk 0:03:00]}  Bg7 {[%clk 0:03:02]} 8. Re1 {[%clk 0:03:00]}  a5 {[%clk 0:03:01]} 9. a4 {[%clk 0:03:00]}  b6 {[%clk 0:03:01]} 10. c3 {[%clk 0:02:59]}  Ba6 {[%clk 0:03:01]} 11. Nb1 {[%clk 0:03:00]}  O-O {[%clk 0:02:59]} 12. Na3 {[%clk 0:03:00]}  Ra7 {[%clk 0:02:59]} 13. e5 {[%clk 0:02:55]}  Rd7 {[%clk 0:02:56]} 14. h4 {[%clk 0:02:52]}  h6 {[%clk 0:02:56]} 15. Bf4 {[%clk 0:02:52]}  Nf5 {[%clk 0:02:56]} 16. Nb5 {[%clk 0:02:45]}  Bxb5 {[%clk 0:02:52]} 17. axb5 {[%clk 0:02:46]}  Na7 {[%clk 0:02:52]} 18. Qa4 {[%clk 0:02:45]}  Nc8 {[%clk 0:02:50]} 19. d4 {[%clk 0:02:37]}  c4 {[%clk 0:02:43]} 20. Qc2 {[%clk 0:02:32]}  Ra7 {[%clk 0:02:40]} 21. Qd2 {[%clk 0:02:29]}  Kh7 {[%clk 0:02:39]} 22. Qc2 {[%clk 0:02:12]}  Ra8 {[%clk 0:02:38]} 23. Bh3 {[%clk 0:02:03]}  Na7 {[%clk 0:02:37]} 24. Bxf5 {[%clk 0:01:55]}  exf5 {[%clk 0:02:38]} 25. e6 {[%clk 0:01:52]}  fxe6 {[%clk 0:02:33]} 26. Rxe6 {[%clk 0:01:53]}  Nxb5 {[%clk 0:02:33]} 27. Rae1 {[%clk 0:01:46]}  Rf7 {[%clk 0:02:08]} 28. Ne5 {[%clk 0:01:25]}  Bxe5 {[%clk 0:02:08]} 29. R1xe5 {[%clk 0:01:02]}  a4 {[%clk 0:01:49]} 30. h5 {[%clk 0:00:59]}  g5 {[%clk 0:01:32]} 31. Rxf5 {[%clk 0:00:55]}  Rxf5 {[%clk 0:01:01]} 32. Qxf5+ {[%clk 0:00:56]}  Kg7 {[%clk 0:01:01]} 33. Be5+ {[%clk 0:00:56]}  Kg8 {[%clk 0:01:00]} 34. Qg6+ {[%clk 0:00:55]}  Kf8 {[%clk 0:01:01]} 35. Qg7# {[%clk 0:00:55]} 1-0


[Site "https://www.chess.com"]

[Event "Titled Tuesday Blitz August 09 Early 2022"]
[White "Daeschler, Florian"]
[Black "Xu, Yi"]
[WhiteFideId "20678193"]
[BlackFideId "8605564"]
[WhiteElo "2187"]
[BlackElo "2471"]
[Result "0-1"]
[Round "03"]
[TimeControl "180+1"]
[Date "2022.08.09"]
[WhiteClock "0:00:16"]
[BlackClock "0:00:17"]

1. e4 {[%clk 0:03:00]}  c5 {[%clk 0:02:59]} 2. Nf3 {[%clk 0:03:01]}  d6 {[%clk 0:03:00]} 3. Bb5+ {[%clk 0:03:00]}  Nd7 {[%clk 0:03:00]} 4. d4 {[%clk 0:02:59]}  cxd4 {[%clk 0:02:59]} 5. Qxd4 {[%clk 0:03:00]}  a6 {[%clk 0:02:57]} 6. Bxd7+ {[%clk 0:03:00]}  Bxd7 {[%clk 0:02:57]} 7. O-O {[%clk 0:03:00]}  Nf6 {[%clk 0:02:56]} 8. Bg5 {[%clk 0:02:59]}  e6 {[%clk 0:02:56]} 9. Nbd2 {[%clk 0:02:58]}  Bc6 {[%clk 0:02:48]} 10. Nc4 {[%clk 0:02:56]}  b5 {[%clk 0:02:45]} 11. Nb6 {[%clk 0:02:55]}  Rb8 {[%clk 0:02:42]} 12. Nd5 {[%clk 0:02:55]}  Be7 {[%clk 0:02:06]} 13. Nxe7 {[%clk 0:02:27]}  Qxe7 {[%clk 0:02:07]} 14. Rad1 {[%clk 0:02:27]}  Rd8 {[%clk 0:02:07]} 15. Rfe1 {[%clk 0:02:11]}  O-O {[%clk 0:02:02]} 16. Qb6 {[%clk 0:02:09]}  Qb7 {[%clk 0:01:59]} 17. Qxb7 {[%clk 0:01:55]}  Bxb7 {[%clk 0:01:59]} 18. Nd2 {[%clk 0:01:54]}  Rc8 {[%clk 0:01:55]} 19. c3 {[%clk 0:01:52]}  h6 {[%clk 0:01:48]} 20. Bxf6 {[%clk 0:01:46]}  gxf6 {[%clk 0:01:48]} 21. Nb3 {[%clk 0:01:46]}  Rfd8 {[%clk 0:01:48]} 22. f3 {[%clk 0:01:44]}  Kf8 {[%clk 0:01:48]} 23. Kf2 {[%clk 0:01:44]}  Ke7 {[%clk 0:01:49]} 24. Ke3 {[%clk 0:01:44]}  h5 {[%clk 0:01:49]} 25. Na5 {[%clk 0:01:31]}  Ba8 {[%clk 0:01:49]} 26. a4 {[%clk 0:01:30]}  bxa4 {[%clk 0:01:19]} 27. Ra1 {[%clk 0:01:28]}  Rb8 {[%clk 0:01:13]} 28. Re2 {[%clk 0:01:18]}  d5 {[%clk 0:01:13]} 29. Rxa4 {[%clk 0:01:14]}  dxe4 {[%clk 0:01:11]} 30. fxe4 {[%clk 0:01:14]}  Rd1 {[%clk 0:01:08]} 31. b4 {[%clk 0:01:10]}  Rbd8 {[%clk 0:01:04]} 32. Nb3 {[%clk 0:00:59]}  R8d3+ {[%clk 0:00:46]} 33. Kf2 {[%clk 0:00:59]}  Rxc3 {[%clk 0:00:46]} 34. Nc5 {[%clk 0:00:59]}  Bc6 {[%clk 0:00:44]} 35. Rxa6 {[%clk 0:00:57]}  Bb5 {[%clk 0:00:44]} 36. Ra7+ {[%clk 0:00:57]}  Kf8 {[%clk 0:00:44]} 37. Rc7 {[%clk 0:00:37]}  Ra3 {[%clk 0:00:30]} 38. Rc8+ {[%clk 0:00:22]}  Kg7 {[%clk 0:00:30]} 39. Rb8 {[%clk 0:00:22]}  Bxe2 {[%clk 0:00:29]} 40. Kxe2 {[%clk 0:00:23]}  Rc1 {[%clk 0:00:19]} 41. Rb7 {[%clk 0:00:18]}  Rc2+ {[%clk 0:00:18]} 42. Kd1 {[%clk 0:00:17]}  Rxg2 {[%clk 0:00:17]} 43. Nxe6+ {[%clk 0:00:16]}  Kh6 {[%clk 0:00:17]} 0-1


[Site "https://www.chess.com"]

[Event "Titled Tuesday Blitz August 09 Early 2022"]
[White "Danielyan, Vahe"]
[Black "Avinash, Ramesh"]
[WhiteFideId "13304828"]
[BlackFideId "45018340"]
[WhiteElo "2421"]
[BlackElo "1901"]
[Result "1-0"]
[Round "03"]
[TimeControl "180+1"]
[Date "2022.08.09"]
[WhiteClock "0:01:01"]
[BlackClock "0:00:48"]

1. e4 {[%clk 0:03:00]}  e6 {[%clk 0:02:57]} 2. d4 {[%clk 0:03:00]}  d5 {[%clk 0:02:57]} 3. Nc3 {[%clk 0:03:01]}  Nf6 {[%clk 0:02:57]} 4. Bg5 {[%clk 0:03:00]}  h6 {[%clk 0:02:57]} 5. Bxf6 {[%clk 0:03:00]}  Qxf6 {[%clk 0:02:58]} 6. Nf3 {[%clk 0:03:01]}  Bb4 {[%clk 0:02:57]} 7. e5 {[%clk 0:03:01]}  Qd8 {[%clk 0:02:56]} 8. a3 {[%clk 0:03:02]}  Bxc3+ {[%clk 0:02:54]} 9. bxc3 {[%clk 0:03:03]}  c5 {[%clk 0:02:54]} 10. a4 {[%clk 0:03:04]}  Nc6 {[%clk 0:02:54]} 11. Bb5 {[%clk 0:03:03]}  a6 {[%clk 0:02:53]} 12. Bxc6+ {[%clk 0:03:03]}  bxc6 {[%clk 0:02:54]} 13. dxc5 {[%clk 0:03:03]}  Qa5 {[%clk 0:02:54]} 14. Qd4 {[%clk 0:03:04]}  Rb8 {[%clk 0:02:53]} 15. O-O {[%clk 0:03:04]}  O-O {[%clk 0:02:53]} 16. h4 {[%clk 0:03:03]}  Bd7 {[%clk 0:02:50]} 17. Rfb1 {[%clk 0:03:04]}  Qc7 {[%clk 0:02:15]} 18. Rb6 {[%clk 0:03:03]}  Rxb6 {[%clk 0:02:04]} 19. cxb6 {[%clk 0:03:04]}  c5 {[%clk 0:02:05]} 20. bxc7 {[%clk 0:03:00]}  cxd4 {[%clk 0:02:05]} 21. Rb1 {[%clk 0:02:52]}  dxc3 {[%clk 0:02:01]} 22. Rb8 {[%clk 0:02:50]}  Rc8 {[%clk 0:02:00]} 23. Nd4 {[%clk 0:01:58]}  f6 {[%clk 0:01:59]} 24. Nc6 {[%clk 0:01:52]}  Kf7 {[%clk 0:01:52]} 25. Rxc8 {[%clk 0:01:52]}  Bxc8 {[%clk 0:01:51]} 26. Na7 {[%clk 0:01:53]}  Bb7 {[%clk 0:01:46]} 27. Kf1 {[%clk 0:01:26]}  fxe5 {[%clk 0:01:42]} 28. Ke2 {[%clk 0:01:24]}  e4 {[%clk 0:01:34]} 29. c8=Q {[%clk 0:01:18]}  Bxc8 {[%clk 0:01:34]} 30. Nxc8 {[%clk 0:01:19]}  Kf6 {[%clk 0:01:29]} 31. a5 {[%clk 0:01:17]}  g5 {[%clk 0:01:26]} 32. hxg5+ {[%clk 0:01:17]}  hxg5 {[%clk 0:01:25]} 33. Nb6 {[%clk 0:01:17]}  Ke5 {[%clk 0:01:21]} 34. g4 {[%clk 0:01:10]}  Kd6 {[%clk 0:01:18]} 35. Ke3 {[%clk 0:01:09]}  Kc5 {[%clk 0:01:16]} 36. Nd7+ {[%clk 0:01:09]}  Kb5 {[%clk 0:01:03]} 37. Kd4 {[%clk 0:01:06]}  Kxa5 {[%clk 0:01:03]} 38. Nf8 {[%clk 0:01:05]}  Kb4 {[%clk 0:00:57]} 39. Nxe6 {[%clk 0:01:05]}  a5 {[%clk 0:00:58]} 40. Nc7 {[%clk 0:01:05]}  Ka3 {[%clk 0:00:48]} 41. Kxc3 {[%clk 0:01:02]}  d4+ {[%clk 0:00:44]} 42. Kxd4 {[%clk 0:01:02]}  Kb2 {[%clk 0:00:45]} 43. c4 {[%clk 0:01:02]}  a4 {[%clk 0:00:45]} 44. Nb5 {[%clk 0:01:03]}  e3 {[%clk 0:00:45]} 45. fxe3 {[%clk 0:01:03]}  Kb3 {[%clk 0:00:46]} 46. c5 {[%clk 0:01:02]}  Kb4 {[%clk 0:00:47]} 47. c6 {[%clk 0:01:01]}  Kxb5 {[%clk 0:00:47]} 48. c7 {[%clk 0:01:01]}  a3 {[%clk 0:00:48]} 49. c8=Q {[%clk 0:01:02]}  a2 {[%clk 0:00:48]} 50. Qb7+ {[%clk 0:01:01]} 1-0


[Site "https://www.chess.com"]

[Event "Titled Tuesday Blitz August 09 Early 2022"]
[White "De Souza, Cristiano Gomes"]
[Black "Pein, Jonathan"]
[WhiteFideId "2151758"]
[BlackFideId "417092"]
[WhiteElo "2068"]
[BlackElo "2140"]
[Result "0-1"]
[Round "03"]
[TimeControl "180+1"]
[Date "2022.08.09"]
[WhiteClock "0:00:27"]
[BlackClock "0:00:14"]

1. d4 {[%clk 0:03:00]}  e6 {[%clk 0:02:51]} 2. c4 {[%clk 0:03:00]}  Bb4+ {[%clk 0:02:51]} 3. Bd2 {[%clk 0:02:59]}  Bxd2+ {[%clk 0:02:51]} 4. Qxd2 {[%clk 0:02:58]}  Nf6 {[%clk 0:02:51]} 5. Nc3 {[%clk 0:02:57]}  d6 {[%clk 0:02:51]} 6. e4 {[%clk 0:02:57]}  Nc6 {[%clk 0:02:49]} 7. Nf3 {[%clk 0:02:56]}  O-O {[%clk 0:02:49]} 8. Be2 {[%clk 0:02:55]}  e5 {[%clk 0:02:49]} 9. d5 {[%clk 0:02:55]}  Ne7 {[%clk 0:02:50]} 10. O-O {[%clk 0:02:54]}  Ng6 {[%clk 0:02:49]} 11. b4 {[%clk 0:02:51]}  Nh5 {[%clk 0:02:41]} 12. Rfc1 {[%clk 0:02:50]}  Nhf4 {[%clk 0:02:41]} 13. Bf1 {[%clk 0:02:49]}  Bg4 {[%clk 0:02:41]} 14. Qe3 {[%clk 0:02:48]}  Qf6 {[%clk 0:02:39]} 15. c5 {[%clk 0:02:37]}  Nh3+ {[%clk 0:02:38]} 16. gxh3 {[%clk 0:02:25]}  Bxf3 {[%clk 0:02:37]} 17. Ne2 {[%clk 0:02:14]}  Nh4 {[%clk 0:02:27]} 18. Ng3 {[%clk 0:02:07]}  Qg6 {[%clk 0:02:20]} 19. cxd6 {[%clk 0:02:04]}  cxd6 {[%clk 0:02:20]} 20. Rc7 {[%clk 0:02:03]}  f5 {[%clk 0:02:13]} 21. exf5 {[%clk 0:02:03]}  Rxf5 {[%clk 0:02:13]} 22. Rac1 {[%clk 0:01:57]}  Bxd5 {[%clk 0:01:44]} 23. Bd3 {[%clk 0:01:50]}  Nf3+ {[%clk 0:01:35]} 24. Kf1 {[%clk 0:01:40]}  Nxh2+ {[%clk 0:01:17]} 25. Ke1 {[%clk 0:01:39]}  e4 {[%clk 0:01:08]} 26. Nxf5 {[%clk 0:01:35]}  Qxf5 {[%clk 0:00:56]} 27. Bc4 {[%clk 0:01:28]}  Nf3+ {[%clk 0:00:51]} 28. Ke2 {[%clk 0:01:27]}  Bxc4+ {[%clk 0:00:46]} 29. R1xc4 {[%clk 0:01:27]}  d5 {[%clk 0:00:44]} 30. R4c5 {[%clk 0:01:25]}  Rf8 {[%clk 0:00:38]} 31. Rxb7 {[%clk 0:01:20]}  Qxh3 {[%clk 0:00:37]} 32. Rxd5 {[%clk 0:01:13]}  Qh1 {[%clk 0:00:34]} 33. Rd1 {[%clk 0:01:07]}  Qh5 {[%clk 0:00:32]} 34. Qb3+ {[%clk 0:00:40]}  Kh8 {[%clk 0:00:30]} 35. Ke3 {[%clk 0:00:37]}  Ng5 {[%clk 0:00:20]} 36. Rdd7 {[%clk 0:00:34]}  Qf3+ {[%clk 0:00:17]} 37. Kd4 {[%clk 0:00:33]}  Qxf2+ {[%clk 0:00:17]} 38. Kd5 {[%clk 0:00:31]}  Qf5+ {[%clk 0:00:16]} 39. Kc4 {[%clk 0:00:30]}  Ne6 {[%clk 0:00:15]} 40. Qc3 {[%clk 0:00:29]}  Rc8+ {[%clk 0:00:13]} 41. Kb3 {[%clk 0:00:28]}  Rxc3+ {[%clk 0:00:13]} 42. Kxc3 {[%clk 0:00:28]}  h6 {[%clk 0:00:14]} 43. Rb8+ {[%clk 0:00:27]}  Kh7 {[%clk 0:00:14]} 44. Re7 {[%clk 0:00:27]}  e3 {[%clk 0:00:14]} 45. Rxe6 {[%clk 0:00:27]}  Qxe6 {[%clk 0:00:14]} 0-1


[Site "https://www.chess.com"]

[Event "Titled Tuesday Blitz August 09 Early 2022"]
[White "Dev, Shah"]
[Black "Drygalov, Sergey"]
[WhiteFideId "35019058"]
[BlackFideId "24171743"]
[WhiteElo "2652"]
[BlackElo "2825"]
[Result "0-1"]
[Round "03"]
[TimeControl "180+1"]
[Date "2022.08.09"]
[WhiteClock "0:00:40"]
[BlackClock "0:01:15"]

1. d4 {[%clk 0:03:00]}  Nf6 {[%clk 0:02:53]} 2. c4 {[%clk 0:03:00]}  e6 {[%clk 0:02:53]} 3. g3 {[%clk 0:03:00]}  Bb4+ {[%clk 0:02:51]} 4. Nd2 {[%clk 0:02:59]}  O-O {[%clk 0:02:47]} 5. Bg2 {[%clk 0:02:58]}  d5 {[%clk 0:02:48]} 6. Nf3 {[%clk 0:02:58]}  b6 {[%clk 0:02:48]} 7. cxd5 {[%clk 0:02:56]}  exd5 {[%clk 0:02:47]} 8. O-O {[%clk 0:02:56]}  Bb7 {[%clk 0:02:47]} 9. Ne5 {[%clk 0:02:57]}  Nbd7 {[%clk 0:02:45]} 10. f4 {[%clk 0:02:55]}  Bd6 {[%clk 0:02:39]} 11. e3 {[%clk 0:02:55]}  c5 {[%clk 0:02:38]} 12. b3 {[%clk 0:02:49]}  cxd4 {[%clk 0:02:37]} 13. exd4 {[%clk 0:02:49]}  Rc8 {[%clk 0:02:34]} 14. Bb2 {[%clk 0:02:48]}  Ne4 {[%clk 0:02:34]} 15. Qe2 {[%clk 0:02:33]}  f5 {[%clk 0:02:32]} 16. Ndf3 {[%clk 0:02:32]}  Qe7 {[%clk 0:02:21]} 17. a3 {[%clk 0:02:25]}  a5 {[%clk 0:02:05]} 18. Rfc1 {[%clk 0:02:08]}  Rxc1+ {[%clk 0:02:02]} 19. Rxc1 {[%clk 0:02:09]}  Nxe5 {[%clk 0:01:57]} 20. fxe5 {[%clk 0:01:29]}  Bxa3 {[%clk 0:01:56]} 21. Bxa3 {[%clk 0:01:30]}  Qxa3 {[%clk 0:01:57]} 22. Rc7 {[%clk 0:01:31]}  Bc8 {[%clk 0:01:58]} 23. Qb5 {[%clk 0:01:25]}  Kh8 {[%clk 0:01:16]} 24. Qxd5 {[%clk 0:01:20]}  Qa1+ {[%clk 0:01:16]} 25. Bf1 {[%clk 0:01:07]}  Ba6 {[%clk 0:01:17]} 26. Rc4 {[%clk 0:01:01]}  Bxc4 {[%clk 0:01:16]} 27. bxc4 {[%clk 0:00:59]}  Qc3 {[%clk 0:01:15]} 28. Kg2 {[%clk 0:00:40]}  Qe3 {[%clk 0:01:15]} 0-1


[Site "https://www.chess.com"]

[Event "Titled Tuesday Blitz August 09 Early 2022"]
[White "Dimitrov, Atanas"]
[Black "Todorovic, Bojan"]
[WhiteFideId "2901315"]
[BlackFideId "917087"]
[WhiteElo "2655"]
[BlackElo "2266"]
[Result "1-0"]
[Round "03"]
[TimeControl "180+1"]
[Date "2022.08.09"]
[WhiteClock "0:02:28"]
[BlackClock "0:01:48"]

1. Nf3 {[%clk 0:03:00]}  Nf6 {[%clk 0:02:24]} 2. c4 {[%clk 0:03:00]}  g6 {[%clk 0:02:23]} 3. g3 {[%clk 0:03:00]}  Bg7 {[%clk 0:02:22]} 4. Bg2 {[%clk 0:03:01]}  O-O {[%clk 0:02:22]} 5. O-O {[%clk 0:03:01]}  d6 {[%clk 0:02:22]} 6. Nc3 {[%clk 0:03:02]}  c6 {[%clk 0:02:22]} 7. d4 {[%clk 0:03:02]}  Qa5 {[%clk 0:02:20]} 8. e4 {[%clk 0:03:00]}  Qh5 {[%clk 0:02:16]} 9. Qd3 {[%clk 0:02:57]}  Bh3 {[%clk 0:02:15]} 10. Bf4 {[%clk 0:02:48]}  Nbd7 {[%clk 0:02:12]} 11. e5 {[%clk 0:02:45]}  Ne8 {[%clk 0:02:09]} 12. exd6 {[%clk 0:02:42]}  Nxd6 {[%clk 0:02:07]} 13. Rfe1 {[%clk 0:02:41]}  Bxg2 {[%clk 0:02:05]} 14. Kxg2 {[%clk 0:02:41]}  Nf5 {[%clk 0:02:03]} 15. h3 {[%clk 0:02:38]}  Nxd4 {[%clk 0:02:01]} 16. Nxd4 {[%clk 0:02:37]}  Nc5 {[%clk 0:02:01]} 17. Qe3 {[%clk 0:02:33]}  e5 {[%clk 0:02:00]} 18. Bxe5 {[%clk 0:02:32]}  Rfe8 {[%clk 0:01:59]} 19. Nf3 {[%clk 0:02:30]}  Nd7 {[%clk 0:01:56]} 20. g4 {[%clk 0:02:28]}  Rxe5 {[%clk 0:01:48]} 1-0


[Site "https://www.chess.com"]